fUSD/lending_fUSD_20250617
["ID","MTS","AMOUNT","RATE_DAILY","PERIOD"]
[366205360,1750119042290,-560.66,0.00016297,2]
[366205361,1750119042300,-490.0,0.00016297,2]
[366205362,1750119042310,-490.0,0.00016297,2]
[366205363,1750119042319,-490.0,0.00016297,2]
[366205364,1750119042329,-490.0,0.00016297,2]
[366205365,1750119042339,-490.0,0.00016297,2]
[366205366,1750119042350,-490.0,0.00016297,2]
[366205367,1750119042360,-620.71,0.00016297,2]
[366205368,1750119042370,-490.0,0.00016297,2]
[366205369,1750119042381,-672.82,0.00016297,2]
[366205370,1750119042392,-585.587,0.00016297,2]
[366205371,1750119042402,-630.04,0.00016297,2]
[366205372,1750119042414,-490.0,0.00016297,2]
[366205373,1750119042424,-490.0,0.00016297,2]
[366205374,1750119042434,-490.0,0.00016297,2]
[366205375,1750119042445,-490.0,0.00016297,2]
[366205376,1750119042455,-490.0,0.00016297,2]
[366205377,1750119042465,-490.0,0.00016297,2]
[366205378,1750119042476,-490.0,0.00016297,2]
[366205379,1750119042486,-595.49,0.00016297,2]
[366205381,1750119042496,-497.89154998,0.00016297,2]
[366205383,1750119042505,-579.9895855,0.00016297,2]
[366205384,1750119042515,-490.0,0.00016297,2]
[366205387,1750119042526,-490.0,0.00016297,2]
[366205388,1750119042536,-490.0,0.00016297,2]
[366205389,1750119042546,-541.91,0.00016297,2]
[366205390,1750119042556,-490.0,0.00016297,2]
[366205391,1750119042566,-495.82,0.00016297,2]
[366205392,1750119042576,-490.0,0.00016297,2]
[366205394,1750119042586,-490.0,0.00016297,2]
[366205396,1750119042596,-490.0,0.00016297,2]
[366205398,1750119042605,-490.0,0.00016297,2]
[366205400,1750119042615,-559.31,0.00016297,2]
[366205402,1750119042626,-490.0,0.00016297,2]
[366205404,1750119042636,-490.0,0.00016297,2]
[366205406,1750119042646,-490.0,0.00016297,2]
[366205408,1750119042656,-490.0,0.00016297,2]
[366205410,1750119042667,-490.0,0.00016297,2]
[366205412,1750119042676,-490.0,0.00016297,2]
[366205413,1750119042686,-490.0,0.00016297,2]
[366205414,1750119042696,-491.82908997,0.00016297,2]
[366205415,1750119042706,-525.91,0.00016297,2]
[366205416,1750119042715,-490.0,0.00016297,2]
[366205417,1750119042725,-490.0,0.00016297,2]
[366205419,1750119042735,-490.0,0.00016297,2]
[366205421,1750119042746,-490.0,0.00016297,2]
[366205422,1750119042756,-490.0,0.00016297,2]
[366205423,1750119042766,-490.0,0.00016297,2]
[366205424,1750119042775,-490.0,0.00016297,2]
[366205425,1750119042785,-493.87499641,0.00016297,2]
[366205426,1750119042795,-3423.63,0.00016297,2]
[366205427,1750119042805,-500.0,0.00016297,2]
[366205428,1750119042814,-490.0,0.00016297,2]
[366205429,1750119042824,-490.0,0.00016297,2]
[366205430,1750119042834,-558.41998348,0.00016297,2]
[366205431,1750119042845,-490.0,0.00016297,2]
[366205432,1750119042855,-490.0,0.00016297,2]
[366205433,1750119042864,-490.0,0.00016297,2]
[366205434,1750119042874,-490.0,0.00016297,2]
[366205435,1750119042886,-490.0,0.00016297,2]
[366205436,1750119042896,-500.97,0.00016297,2]
[366205437,1750119042906,-490.0,0.00016297,2]
[366205438,1750119042916,-490.0,0.00016297,2]
[366205439,1750119042926,-490.0,0.00016297,2]
[366205440,1750119042939,-1266.87,0.00016297,2]
[366205441,1750119042949,-490.0,0.00016297,2]
[366205442,1750119042959,-490.0,0.00016297,2]
[366205443,1750119042968,-490.0,0.00016297,2]
[366205444,1750119042979,-490.0,0.00016297,2]
[366205446,1750119042989,-493.57149374,0.00016297,2]
[366205447,1750119042999,-490.0,0.00016297,2]
[366205448,1750119043008,-495.31970123,0.00016297,2]
[366205449,1750119043019,-490.0,0.00016297,2]
[366205450,1750119043029,-490.0,0.00016297,2]
[366205452,1750119043038,-490.0,0.00016297,2]
[366205453,1750119043048,-490.0,0.00016297,2]
[366205454,1750119043058,-490.0,0.00016297,2]
[366205455,1750119043068,-1194.25,0.00016297,2]
[366205456,1750119043078,-490.0,0.00016297,2]
[366205457,1750119043088,-353.6319465,0.00016297,2]
[366205458,1750119043097,-490.0,0.00016297,2]
[366205459,1750119043107,-752.69,0.00016297,2]
[366205460,1750119043117,-490.0,0.00016297,2]
[366205461,1750119043128,-490.0,0.00016297,2]
[366205462,1750119043137,-561.95,0.00016297,2]
[366205463,1750119043148,-498.52336618,0.00016297,2]
[366205464,1750119043158,-490.0,0.00016297,2]
[366205465,1750119043167,-649.69,0.00016297,2]
[366205466,1750119043176,-1232.95,0.00016297,2]
[366205467,1750119043186,-490.0,0.00016297,2]
[366205469,1750119043196,-490.0,0.00016297,2]
[366205471,1750119043206,-490.0,0.00016297,2]
[366205473,1750119043216,-1054.32,0.00016297,2]
[366205475,1750119043225,-490.0,0.00016297,2]
[366205477,1750119043235,-490.0,0.00016297,2]
[366205479,1750119043245,-490.0,0.00016297,2]
[366205481,1750119043255,-490.0,0.00016297,2]
[366205483,1750119043265,-600.93,0.00016297,2]
[366205485,1750119043275,-490.0,0.00016297,2]
[366205486,1750119043284,-490.0,0.00016297,2]
[366205487,1750119043294,-505.7,0.00016297,2]
[366205488,1750119043303,-490.0,0.00016297,2]
[366205489,1750119043313,-490.0,0.00016297,2]
[366205490,1750119043322,-490.0,0.00016297,2]
[366205491,1750119043332,-490.0,0.00016297,2]
[366205492,1750119043341,-490.0,0.00016297,2]
[366205493,1750119043351,-490.0,0.00016297,2]
[366205494,1750119043361,-1668.61,0.00016297,2]
[366205495,1750119043370,-548.85,0.00016297,2]
[366205496,1750119043381,-490.0,0.00016297,2]
[366205497,1750119043391,-591.64,0.00016297,2]
[366205498,1750119043401,-490.0,0.00016297,2]
[366205499,1750119043411,-490.0,0.00016297,2]
[366205500,1750119043421,-1248.68,0.00016297,2]
[366205501,1750119043431,-490.0,0.00016297,2]
[366205502,1750119043440,-496.39138524,0.00016297,2]
[366205503,1750119043451,-490.0,0.00016297,2]
[366205504,1750119043460,-492.24058345,0.00016297,2]
[366205505,1750119043470,-490.0,0.00016297,2]
[366205506,1750119043479,-490.0,0.00016297,2]
[366205507,1750119043489,-492.2202246,0.00016297,2]
[366205508,1750119043499,-490.0,0.00016297,2]
[366205509,1750119043508,-490.0,0.00016297,2]
[366205510,1750119043518,-490.0,0.00016297,2]
[366205511,1750119043528,-490.0,0.00016297,2]
[366205512,1750119043537,-492.63877418,0.00016297,2]
[366205513,1750119043547,-490.0,0.00016297,2]
[366205514,1750119043557,-575.97,0.00016297,2]
[366205515,1750119043567,-490.0,0.00016297,2]
[366205516,1750119043577,-490.0,0.00016297,2]
[366205517,1750119043587,-490.0,0.00016297,2]
[366205518,1750119043597,-490.0,0.00016297,2]
[366205519,1750119043607,-490.0,0.00016297,2]
[366205520,1750119043616,-490.0,0.00016297,2]
[366205521,1750119043628,-490.0,0.00016297,2]
[366205522,1750119043638,-490.0,0.00016297,2]
[366205523,1750119043648,-490.0,0.00016297,2]
[366205524,1750119043658,-490.0,0.00016297,2]
[366205525,1750119043668,-490.0,0.00016297,2]
[366205526,1750119043677,-3554.72,0.00016297,2]
[366205527,1750119043687,-490.0,0.00016297,2]
[366205528,1750119043696,-490.0,0.00016297,2]
[366205529,1750119043707,-490.0,0.00016297,2]
[366205530,1750119043717,-545.44,0.00016297,2]
[366205531,1750119043727,-490.0,0.00016297,2]
[366205532,1750119043737,-490.0,0.00016297,2]
[366205533,1750119043747,-490.0,0.00016297,2]
[366205534,1750119043757,-490.0,0.00016297,2]
[366205535,1750119043767,-1066.26,0.00016297,2]
[366205536,1750119043776,-490.0,0.00016297,2]
[366205537,1750119043786,-490.0,0.00016297,2]
[366205538,1750119043796,-490.0,0.00016297,2]
[366205539,1750119043806,-490.0,0.00016297,2]
[366205540,1750119043815,-490.0,0.00016297,2]
[366205541,1750119043825,-2667.27,0.00016297,2]
[366205542,1750119043834,-490.0,0.00016297,2]
[366205543,1750119043844,-490.0,0.00016297,2]
[366205544,1750119043853,-490.0,0.00016297,2]
[366205545,1750119043863,-234.41488933,0.00016297,2]
[366205546,1750119043873,-1022.59,0.00016297,2]
[366205547,1750119043885,-490.0,0.00016297,2]
[366205548,1750119043894,-490.0,0.00016297,2]
[366205549,1750119043904,-490.0,0.00016297,2]
[366205550,1750119043914,-568.49,0.00016297,2]
[366205551,1750119043924,-636.73,0.00016297,2]
[366205552,1750119043934,-490.0,0.00016297,2]
[366205553,1750119043948,-490.0,0.00016297,2]
[366205554,1750119043958,-375.12382837,0.00016297,2]
[366205555,1750119043968,-490.0,0.00016297,2]
[366205556,1750119043978,-490.0,0.00016297,2]
[366205557,1750119043987,-2479.52,0.00016297,2]
[366205558,1750119043997,-490.0,0.00016297,2]
[366205559,1750119044006,-490.0,0.00016297,2]
[366205560,1750119044017,-490.0,0.00016297,2]
[366205561,1750119044027,-562.94,0.00016297,2]
[366205562,1750119044036,-490.0,0.00016297,2]
[366205563,1750119044046,-490.0,0.00016297,2]
[366205564,1750119044055,-490.0,0.00016297,2]
[366205565,1750119044064,-490.0,0.00016297,2]
[366205566,1750119044074,-500.0,0.00016297,2]
[366205567,1750119044309,-490.0,0.00016297,2]
[366205568,1750119044320,-608.96,0.00016297,2]
[366205569,1750119044330,-490.0,0.00016297,2]
[366205570,1750119044340,-197.60450204,0.00016297,2]
[366205571,1750119044350,-490.0,0.00016297,2]
[366205572,1750119044361,-490.0,0.00016297,2]
[366205573,1750119044371,-490.0,0.00016297,2]
[366205574,1750119044384,-490.0,0.00016297,2]
[366205575,1750119044394,-490.0,0.00016297,2]
[366205576,1750119044404,-490.0,0.00016297,2]
[366205577,1750119044415,-490.0,0.00016297,2]
[366205578,1750119044424,-490.0,0.00016297,2]
[366205579,1750119044435,-490.0,0.00016297,2]
[366205580,1750119044446,-490.0,0.00016297,2]
[366205581,1750119044455,-490.0,0.00016297,2]
[366205582,1750119044466,-490.0,0.00016297,2]
[366205583,1750119044475,-490.0,0.00016297,2]
[366205584,1750119044485,-490.0,0.00016297,2]
[366205585,1750119044495,-490.0,0.00016297,2]
[366205586,1750119044505,-390.12107146,0.00016297,2]
[366205587,1750119044515,-490.0,0.00016297,2]
[366205588,1750119044525,-490.0,0.00016297,2]
[366205589,1750119044535,-491.73213377,0.00016297,2]
[366205590,1750119044545,-490.0,0.00016297,2]
[366205591,1750119044554,-490.0,0.00016297,2]
[366205592,1750119044564,-490.0,0.00016297,2]
[366205593,1750119044574,-492.40480381,0.00016297,2]
[366205594,1750119044584,-490.0,0.00016297,2]
[366205595,1750119044594,-446.97890755,0.00016297,2]
[366205596,1750119044604,-490.0,0.00016297,2]
[366205597,1750119044614,-490.0,0.00016297,2]
[366205598,1750119044623,-490.0,0.00016297,2]
[366205599,1750119044635,-490.0,0.00016297,2]
[366205600,1750119044646,-1000.0,0.00016297,2]
[366205601,1750119044656,-490.0,0.00016297,2]
[366205602,1750119044665,-490.0,0.00016297,2]
[366205603,1750119044675,-383.83366681,0.00016297,2]
[366205604,1750119044685,-490.0,0.00016297,2]
[366205605,1750119044695,-490.0,0.00016297,2]
[366205606,1750119044704,-490.25944667,0.00016297,2]
[366205607,1750119044714,-490.0,0.00016297,2]
[366205608,1750119044724,-490.0,0.00016297,2]
[366205609,1750119044734,-491.19555672,0.00016297,2]
[366205610,1750119044744,-490.0,0.00016297,2]
[366205611,1750119044755,-490.0,0.00016297,2]
[366205612,1750119044764,-335.52331146,0.00016297,2]
[366205613,1750119044774,-490.0,0.00016297,2]
[366205614,1750119044784,-521.40928304,0.00016297,2]
[366205615,1750119044795,-490.0,0.00016297,2]
[366205616,1750119044804,-490.0,0.00016297,2]
[366205617,1750119044814,-490.0,0.00016297,2]
[366205618,1750119044824,-490.0,0.00016297,2]
[366205619,1750119044834,-490.0,0.00016297,2]
[366205620,1750119044844,-1127.15,0.00016297,2]
[366205621,1750119044854,-490.0,0.00016297,2]
[366205622,1750119044865,-490.43667736,0.00016297,2]
[366205623,1750119044875,-490.0,0.00016297,2]
[366205624,1750119044886,-490.0,0.00016297,2]
[366205625,1750119044897,-490.0,0.00016297,2]
[366205626,1750119044907,-3628.59,0.00016297,2]
[366205627,1750119044917,-490.0,0.00016297,2]
[366205628,1750119044927,-490.0,0.00016297,2]
[366205629,1750119044941,-596.68,0.00016297,2]
[366205630,1750119044951,-490.0,0.00016297,2]
[366205631,1750119044962,-490.0,0.00016297,2]
[366205632,1750119044972,-490.0,0.00016297,2]
[366205633,1750119044982,-490.0,0.00016297,2]
[366205634,1750119044992,-490.0,0.00016297,2]
[366205635,1750119045002,-490.0,0.00016297,2]
[366205636,1750119045012,-490.0,0.00016297,2]
[366205637,1750119045024,-490.0,0.00016297,2]
[366205638,1750119045035,-533.15260051,0.00016297,2]
[366205639,1750119045045,-490.0,0.00016297,2]
[366205640,1750119045055,-490.0,0.00016297,2]
[366205641,1750119045064,-675.41,0.00016297,2]
[366205642,1750119045074,-490.0,0.00016297,2]
[366205643,1750119045084,-490.0,0.00016297,2]
[366205644,1750119045095,-490.0,0.00016297,2]
[366205645,1750119045107,-490.0,0.00016297,2]
[366205646,1750119045117,-490.0,0.00016297,2]
[366205647,1750119045129,-564.06172357,0.00016297,2]
[366205648,1750119045139,-490.0,0.00016297,2]
[366205649,1750119045150,-490.0,0.00016297,2]
[366205650,1750119045161,-490.0,0.00016297,2]
[366205651,1750119045171,-578.53,0.00016297,2]
[366205652,1750119045182,-490.0,0.00016297,2]
[366205653,1750119045191,-490.0,0.00016297,2]
[366205654,1750119045202,-490.0,0.00016297,2]
[366205655,1750119045213,-490.0,0.00016297,2]
[366205656,1750119045222,-489.35303997,0.00016297,2]
[366205657,1750119045232,-490.0,0.00016298,2]
[366205658,1750119045243,-154.10742376,0.00016298,2]
[366205659,1750119045253,-490.0,0.00016298,2]
[366205660,1750119045263,-490.0,0.00016298,2]
[366205661,1750119045273,-490.0,0.00016298,2]
[366205662,1750119045284,-314.08,0.00016298,2]
[366205663,1750119045295,-491.20140547,0.00016298,2]
[366205664,1750119045305,-490.0,0.00016298,2]
[366205665,1750119045315,-490.0,0.00016298,2]
[366205666,1750119045325,-490.0,0.00016298,2]
[366205667,1750119045335,-490.0,0.00016298,2]
[366205668,1750119045345,-500.0,0.00016298,2]
[366205669,1750119045355,-208.78,0.00016298,2]
[366205670,1750119045365,-490.0,0.00016298,2]
[366205671,1750119045377,-490.0,0.00016298,2]
[366205672,1750119045388,-179.5,0.00016298,2]
[366205673,1750119045399,-526.4604166,0.00016298,2]
[366205674,1750119045410,-490.0,0.00016298,2]
[366205675,1750119045420,-302.62435507,0.00016298,2]
[366205676,1750119045431,-490.0,0.00016298,2]
[366205677,1750119045441,-531.01,0.00016298,2]
[366205678,1750119045451,-424.3,0.00016298,2]
[366205679,1750119045462,-490.0,0.00016298,2]
[366205680,1750119045472,-600.4,0.00016298,2]
[366205681,1750119045482,-490.0,0.00016298,2]
[366205682,1750119045492,-490.0,0.00016298,2]
[366205683,1750119045504,-490.0,0.00016298,2]
[366205685,1750119045514,-490.0,0.00016298,2]
[366205686,1750119045524,-490.0,0.00016298,2]
[366205687,1750119045534,-490.0,0.00016298,2]
[366205688,1750119045544,-564.27,0.00016298,2]
[366205689,1750119045554,-174.0,0.00016298,2]
[366205690,1750119045564,-490.0,0.00016298,2]
[366205691,1750119045575,-490.0,0.00016298,2]
[366205692,1750119045585,-596.56,0.00016298,2]
[366205693,1750119045595,-490.0,0.00016298,2]
[366205694,1750119045605,-164.8,0.00016298,2]
[366205695,1750119045615,-490.0,0.00016298,2]
[366205696,1750119045625,-490.0,0.00016298,2]
[366205697,1750119045636,-490.0,0.00016298,2]
[366205698,1750119045646,-490.0,0.00016298,2]
[366205699,1750119045656,-490.0,0.00016298,2]
[366205700,1750119045666,-396.93101553,0.00016298,2]
[366205701,1750119045676,-490.0,0.00016298,2]
[366205702,1750119045686,-532.33013157,0.00016298,2]
[366205703,1750119045696,-490.0,0.00016298,2]
[366205704,1750119045706,-490.0,0.00016298,2]
[366205705,1750119045716,-490.0,0.00016298,2]
[366205706,1750119045725,-342.40144143,0.00016298,2]
[366205707,1750119045736,-490.0,0.00016298,2]
[366205708,1750119045746,-490.0,0.00016298,2]
[366205709,1750119045756,-490.0,0.00016298,2]
[366205710,1750119045767,-490.0,0.00016298,2]
[366205711,1750119045777,-567.99,0.00016298,2]
[366205712,1750119045787,-630.97,0.00016298,2]
[366205713,1750119045796,-490.0,0.00016298,2]
[366205714,1750119045807,-490.0,0.00016298,2]
[366205715,1750119045819,-490.0,0.00016298,2]
[366205716,1750119045829,-490.0,0.00016298,2]
[366205717,1750119045839,-490.0,0.00016298,2]
[366205718,1750119045849,-492.56146032,0.00016298,2]
[366205719,1750119045859,-490.0,0.00016298,2]
[366205720,1750119045868,-490.0,0.00016298,2]
[366205721,1750119045880,-498.39157963,0.00016298,2]
[366205722,1750119045890,-496.05737498,0.00016298,2]
[366205723,1750119045900,-490.0,0.00016298,2]
[366205724,1750119045910,-490.0,0.00016298,2]
[366205725,1750119045920,-490.0,0.00016298,2]
[366205726,1750119045930,-490.0,0.00016298,2]
[366205727,1750119045942,-490.0,0.00016298,2]
[366205728,1750119045952,-490.0,0.00016298,2]
[366205729,1750119045962,-490.0,0.00016298,2]
[366205730,1750119045972,-490.0,0.00016298,2]
[366205731,1750119045982,-490.0,0.00016298,2]
[366205732,1750119045995,-490.0,0.00016298,2]
[366205733,1750119046005,-490.0,0.00016298,2]
[366205734,1750119046015,-490.0,0.00016298,2]
[366205735,1750119046024,-490.0,0.00016298,2]
[366205736,1750119046034,-398.2,0.00016298,2]
[366205737,1750119046044,-490.0,0.00016298,2]
[366205738,1750119046054,-490.0,0.00016298,2]
[366205739,1750119046064,-490.0,0.00016298,2]
[366205740,1750119046075,-490.0,0.00016298,2]
[366205741,1750119046085,-490.0,0.00016298,2]
[366205742,1750119046096,-490.0,0.00016298,2]
[366205743,1750119046106,-490.0,0.00016298,2]
[366205744,1750119046115,-490.0,0.00016298,2]
[366205745,1750119046125,-490.0,0.00016298,2]
[366205746,1750119046137,-490.0,0.00016298,2]
[366205747,1750119046147,-490.0,0.00016298,2]
[366205748,1750119046158,-490.0,0.00016298,2]
[366205749,1750119046168,-490.0,0.00016298,2]
[366205750,1750119046178,-490.0,0.00016298,2]
[366205751,1750119046188,-490.0,0.00016298,2]
[366205752,1750119046198,-490.0,0.00016298,2]
[366205753,1750119046208,-490.0,0.00016298,2]
[366205754,1750119046218,-490.0,0.00016298,2]
[366205755,1750119046228,-490.0,0.00016298,2]
[366205756,1750119046238,-490.0,0.00016298,2]
[366205757,1750119046249,-490.0,0.00016298,2]
[366205758,1750119046259,-490.0,0.00016298,2]
[366205759,1750119046270,-490.0,0.00016298,2]
[366205760,1750119046279,-490.0,0.00016298,2]
[366205761,1750119046289,-490.0,0.00016298,2]
[366205762,1750119046299,-490.0,0.00016298,2]
[366205763,1750119046309,-490.0,0.00016298,2]
[366205764,1750119046318,-490.0,0.00016298,2]
[366205765,1750119046328,-490.0,0.00016298,2]
[366205766,1750119046339,-490.0,0.00016298,2]
[366205767,1750119046349,-490.0,0.00016298,2]
[366205768,1750119046359,-490.0,0.00016298,2]
[366205769,1750119046369,-490.0,0.00016298,2]
[366205770,1750119046379,-150.0,0.00016298,2]
[366205771,1750119046390,-151.0,0.00016298,2]
[366205772,1750119046400,-151.0,0.00016298,2]
[366205773,1750119046410,-302.15,0.00016298,2]
[366205774,1750119046419,-150.0,0.00016299,2]
[366205775,1750119046429,-500.0,0.00016299,2]
[366205776,1750119046439,-500.0,0.00016299,2]
[366205777,1750119046449,-165.83626927,0.00016299,2]
[366205778,1750119046459,-500.0,0.00016299,2]
[366205779,1750119046469,-490.89986222,0.00016299,2]
[366205780,1750119046479,-491.43154308,0.00016299,2]
[366205781,1750119046489,-150.0,0.00016299,2]
[366205782,1750119046499,-151.0,0.00016299,2]
[366205783,1750119046509,-151.0,0.00016299,2]
[366205784,1750119046519,-151.0,0.00016299,2]
[366205785,1750119046528,-151.0,0.00016299,2]
[366205786,1750119046538,-151.0,0.00016299,2]
[366205787,1750119046548,-151.0,0.00016299,2]
[366205788,1750119046557,-189.071666,0.00016299,2]
[366205789,1750119046567,-151.0,0.00016299,2]
[366205790,1750119046576,-151.0,0.00016299,2]
[366205791,1750119046586,-157.529937,0.00016299,2]
[366205792,1750119046595,-151.0,0.00016299,2]
[366205793,1750119046605,-157.529937,0.00016299,2]
[366205794,1750119046615,-151.771088,0.00016299,2]
[366205795,1750119046624,-300.854048,0.00016299,2]
[366205796,1750119046636,-2187.56,0.000163,2]
[366205797,1750119046646,-154.369671,0.000163,2]
[366205798,1750119046656,-151.0,0.000163,2]
[366205799,1750119046666,-151.0,0.000163,2]
[366205800,1750119046676,-157.938586,0.000163,2]
[366205801,1750119046685,-3100.0,0.000163,5]
[366205802,1750119046696,-200.0,0.00016303,2]
[366205803,1750119046705,-416.81966861,0.00016303,2]
[366205804,1750119046715,-150.0,0.00016306,2]
[366205805,1750119046724,-150.0,0.00016308,2]
[366205806,1750119046734,-150.0,0.0001631,2]
[366205807,1750119046744,-150.0,0.00016311,2]
[366205808,1750119046754,-679.74240383,0.00016314,2]
[366205809,1750119046763,-150.0,0.00016314,2]
[366205810,1750119046853,-150.0,0.00016315,2]
[366205811,1750119046864,-1000.0,0.00016321,2]
[366205812,1750119046873,-150.0,0.00016323,2]
[366205813,1750119046887,-150.0,0.00016325,2]
[366205814,1750119046897,-500.0,0.00016326,2]
[366205815,1750119046907,-500.0,0.00016326,2]
[366205816,1750119046916,-500.0,0.00016326,2]
[366205817,1750119046925,-150.0,0.0001633,2]
[366205818,1750119046936,-150.0,0.00016332,2]
[366205819,1750119046947,-216.65458595,0.00016341,2]
[366205820,1750119046957,-187.09,0.00016344,2]
[366205821,1750119046966,-500.0,0.00016344,2]
[366205822,1750119046978,-3333.0,0.00016344,2]
[366205823,1750119046987,-946.0,0.00016344,2]
[366205824,1750119046997,-637.0,0.00016344,2]
[366205825,1750119047007,-802.0,0.00016344,2]
[366205826,1750119047017,-590.0,0.00016344,2]
[366205827,1750119047028,-2003.0,0.00016344,2]
[366205828,1750119047038,-558.0,0.00016344,2]
[366205829,1750119047048,-1277.0,0.00016344,2]
[366205830,1750119047057,-928.0,0.00016344,2]
[366205831,1750119047067,-1674.0,0.00016344,2]
[366205832,1750119047077,-168.0,0.00016348,2]
[366205833,1750119047086,-679.74240383,0.00016348,2]
[366205834,1750119047097,-150.0,0.00016349,2]
[366205835,1750119047106,-150.0,0.00016352,2]
[366205836,1750119047116,-3775.59209402,0.00016353,2]
[366205837,1750119047125,-150.0,0.00016353,2]
[366205838,1750119047140,-500.0,0.00016353,2]
[366205839,1750119047150,-500.0,0.00016353,2]
[366205840,1750119047159,-150.0,0.00016354,2]
[366205841,1750119047168,-150.0,0.00016356,2]
[366205842,1750119047178,-150.0,0.00016357,2]
[366205843,1750119047188,-1160.0,0.0001636,2]
[366205844,1750119047197,-150.0,0.0001636,2]
[366205845,1750119047207,-150.0,0.00016363,2]
[366205846,1750119047216,-150.0,0.00016364,2]
[366205847,1750119047226,-150.0,0.00016365,2]
[366205848,1750119047235,-150.0,0.00016368,2]
[366205849,1750119047244,-1000.0,0.00016371,2]
[366205850,1750119047254,-164.66262802,0.00016373,2]
[366205851,1750119047264,-150.0,0.00016374,2]
[366205852,1750119047273,-312.0,0.00016381,2]
[366205853,1750119047283,-500.0,0.00016381,2]
[366205854,1750119047293,-155.0,0.00016381,2]
[366205855,1750119047303,-4090.0,0.00016381,2]
[366205856,1750119047312,-854.0,0.00016381,2]
[366205857,1750119047322,-7112.0,0.00016381,2]
[366205858,1750119047332,-150.0,0.00016381,2]
[366205859,1750119047342,-150.0,0.00016382,2]
[366205860,1750119047351,-679.74240383,0.00016383,2]
[366205861,1750119047360,-4459.533,0.00016384,2]
[366205862,1750119047369,-500.0,0.00016389,2]
[366205863,1750119047379,-500.0,0.00016389,2]
[366205864,1750119047392,-500.0,0.00016389,2]
[366205865,1750119047402,-500.0,0.00016389,2]
[366205866,1750119047411,-500.0,0.00016389,2]
[366205867,1750119047421,-151.0,0.0001639,2]
[366205868,1750119047430,-151.0,0.0001639,2]
[366205869,1750119047439,-151.0,0.0001639,2]
[366205870,1750119047448,-151.0,0.0001639,2]
[366205871,1750119047457,-151.0,0.0001639,2]
[366205872,1750119047467,-151.0,0.0001639,2]
[366205873,1750119047477,-151.0,0.0001639,2]
[366205874,1750119047487,-151.0,0.0001639,2]
[366205875,1750119047495,-151.0,0.0001639,2]
[366205876,1750119047504,-151.0,0.0001639,2]
[366205877,1750119047513,-508.4,0.0001639,2]
[366205878,1750119047522,-304.42,0.0001639,2]
[366205879,1750119047531,-600.0,0.000164,5]
[366205880,1750119047541,-1435.0,0.00016402,2]
[366205881,1750119047551,-1037.66165915,0.00016402,2]
[366205882,1750119047561,-150.0,0.00016402,2]
[366205883,1750119047570,-150.0,0.00016404,2]
[366205884,1750119047579,-500.0,0.00016408,2]
[366205885,1750119047588,-150.0,0.00016412,2]
[366205886,1750119047597,-679.74240383,0.00016417,2]
[366205887,1750119047606,-150.0,0.00016423,2]